Cogmind - Beta 15 @@@ ROGUE MODE // 2025.07.30 @ 20:32:36 Player: shapeshifter Result: Destroyed by G-73 Enforcer with Phase Gun Performance ------------- Evolutions (7) 3500 Regions Visited (18) 3600 Robots Destroyed (236) 1180 Value Destroyed (11296) 11296 Prototype IDs (54) 1080 Alien Tech Used (0) 0 Bonus (5688) 5688 TOTAL SCORE: 26344 Bonus ------- High Alert Combat Kills 1305 Follower Combat Kills 583 Entered DSFs 1000 Aligned with FarCom 300 Met R17 at Cetus 500 Met R17 at Research 2000 Cogmind --------- Core Integrity 0/1300 Matter 297/300 Energy 72/100 System Corruption 12% Temperature Cool (0) Movement Walking (120) Location -3/Armory Parts ------- > --- POWER (2) -------- (None) > --- PROPULSION (6) --- Centrium Leg > --- UTILITY (9) ------ Advanced Heat Sink Graphene Brace > --- WEAPON (4) ------- (None) > --- INVENTORY (5) ---- Quantum Reactor Superbattery (1500) Advanced Point Defense System Nova Cannon Nova Cannon Peak State ------------ > --- POWER ------------ Antimatter Reactor Quantum Reactor > --- PROPULSION ------- Centrium Heavy Treads Centrium Heavy Treads Centrium Heavy Treads > --- UTILITY ---------- Advanced Heat Sink Huge Storage Unit Superbattery Experimental Sensor Array Centrium Medium Armor Plating Centrium Medium Armor Plating Centrium Medium Armor Plating Centrium Medium Armor Plating Improved System Shield > --- WEAPON ----------- Advanced Variable Charge Gun Matter Neutralizer Advanced KE Penetrator Advanced KE Penetrator > --- INVENTORY -------- Antimatter Reactor Antimatter Reactor Heavy Treads Heavy Treads Heavy Treads Centrium Heavy Treads Centrium Heavy Treads Improved Cooling System Long-range Terrain Scanner Advanced Drone Bay Matter Neutralizer Matter Neutralizer Matter Neutralizer Improved KE Penetrator Improved KE Penetrator Advanced KE Penetrator Heavy Mass Driver [Rating: 183] Favorites ----------- Power Nuclear Core Engine Cooled Deuterium Engine Power Core Nuclear Core Reactor Quantum Reactor Propulsion Armored Treads Treads Armored Treads Leg Makeshift Leg Wheel Compact Wheel Hover Unit Combat Gravmag System Utility Centrium Medium Armor Plating Device Advanced Heat Sink Storage Large Storage Unit Processor Core Analyzer Hackware Hacking Suite Protection Centrium Medium Armor Plating Weapon Advanced KE Penetrator Energy Gun Small Laser Energy Cannon Matter Neutralizer Ballistic Gun Advanced KE Penetrator Ballistic Cannon Flak Cannon Launcher Improved Concussive RPG Slashing Weapon Ripper Build | -11 -10 -10 -9 -9 -9 -8 -8 -8 -8 -6 -6 -5 -5 -5 -4 -4 -3 -3 ------- Run | Yrd Mat Min Mat Min Exi Min Mat Sto Rec Fac DSF Fac Ext Cet Fac DSF Res Arm Slots Evolved 14 | . . . 2 . . . 2 . . 4 . 2 . . 2 . 2 . Power 1 | . . . . . . . . . . . . . . . . . 1 . Propulsion 4 | . . . 1 . . . 1 . . . . . . . 2 . . . Utility 7 | . . . 1 . . . 1 . . 2 . 2 . . . . 1 . Weapon 2 | . . . . . . . . . . 2 . . . . . . . . Parts Attached 191 | 7 3 2 3 1 . 13 14 20 2 4 3 19 13 18 1 4 17 47 Power 27 | 1 2 1 . . . 2 1 3 . . 1 4 2 1 . . 5 4 Engine 8 | 1 1 1 . . . 1 . 1 . . . 1 1 . . . 1 . Core 10 | . 1 . . . . 1 1 2 . . 1 3 1 . . . . . Reactor 9 | . . . . . . . . . . . . . . 1 . . 4 4 Propulsion 37 | 2 1 . 1 . . 4 6 4 . . . 2 3 2 1 1 1 9 Treads 29 | 2 1 . 1 . . . 5 4 . . . 2 3 2 1 1 1 6 Leg 5 | . . . . . . 3 . . . . . . . . . . . 2 Wheel 2 | . . . . . . 1 1 . . . . . . . . . . . Hover 1 | . . . . . . . . . . . . . . . . . . 1 Flight . | . . . . . . . . . . . . . . . . . . . Utility 74 | 2 . . 2 . . 3 5 6 2 2 1 8 6 7 . 1 8 21 Device 32 | 1 . . . . . 1 . 2 . 1 . 2 4 2 . . 6 13 Storage 8 | 1 . . 1 . . . 1 . 1 . . 1 . . . 1 1 1 Processor 5 | . . . . . . . 2 . . . . 1 . . . . . 2 Hackware 2 | . . . . . . . . 1 . . . . . 1 . . . . Protection 27 | . . . 1 . . 2 2 3 1 1 1 4 2 4 . . 1 5 Artifact . | . . . . . . . . . . . . . . . . . . . Weapon 53 | 2 . 1 . 1 . 4 2 7 . 2 1 5 2 8 . 2 3 13 Energy Gun 12 | 2 . . . 1 . . . 3 . . . . 1 2 . . . 3 Energy Cannon 18 | . . . . . . 2 . 1 . 1 . 3 . 1 . 2 3 5 Ballistic Gun 14 | . . 1 . . . . 2 2 . 1 1 1 1 4 . . . 1 Ballistic Cannon 5 | . . . . . . . . 1 . . . . . . . . . 4 Launcher 3 | . . . . . . 1 . . . . . 1 . 1 . . . . Special Weapon . | . . . . . . . . . . . . . . . . . . . Impact Weapon . | . . . . . . . . . . . . . . . . . . . Slashing Weapon 1 | . . . . . . 1 . . . . . . . . . . . . Piercing Weapon . | . . . . . . . . . . . . . . . . . . . Special Melee Weapon . | . . . . . . . . . . . . . . . . . . . Unidentified Prototypes 17 | . . . . . . 1 . 7 . . 1 2 . 5 . . 1 . Corrupted Parts 1 | . . . . . . . . . . . . . . 1 . . . . System Corruption 5 | . . . . . . . . . . . . . . 5 . . . . Parts Lost 80 | . 1 . . 2 . 9 4 . . . 2 6 4 9 . . 9 34 Power 8 | . 1 . . . . 1 1 . . . 1 . . . . . 2 2 Propulsion 23 | . . . . 1 . 3 2 . . . 1 3 1 1 . . 1 10 Utility 34 | . . . . 1 . 2 1 . . . . 3 2 7 . . 4 14 Weapon 15 | . . . . . . 3 . . . . . . 1 1 . . 2 8 Highest Loss Streak 18 | . 1 . . 2 . 4 2 . . . 2 4 1 3 . . 5 18 To Critical Strikes 2 | . . . . . . . 1 . . . . . . 1 . . . . Average Backups 13 | 4 6 7 6 8 12 11 13 14 15 15 15 16 15 13 14 16 17 14 Power 1 | 1 . 1 1 1 1 . . . 1 1 . 1 2 2 2 2 1 2 Propulsion 1 | 1 2 2 . . . . 1 1 2 2 1 1 . 1 2 3 5 2 Utility 5 | . 1 2 3 5 7 7 7 8 8 8 8 7 6 5 4 3 4 3 Weapon 4 | . 1 2 2 2 3 2 3 4 4 3 3 5 5 5 6 6 5 6 Tool/Special . | . . . . . . . . . . . . . . . . . . . Unused Backups 49 | . 1 4 . . . . 7 10 . . . 2 . . . 1 10 14 Power 6 | . . 1 . . . . . . . . . . . . . . 2 3 Propulsion 9 | . 1 2 . . . . 1 . . . . . . . . . 4 1 Utility 12 | . . 1 . . . . 1 7 . . . . . . . . 2 1 Weapon 21 | . . . . . . . 4 3 . . . 2 . . . 1 2 9 Tool/Special 1 | . . . . . . . 1 . . . . . . . . . . . Average Slot Usage (%) 90 | . 99 99 99 86 77 84 91 99 100 73 96 94 98 84 84 83 84 81 Engine 2 | . 3 1 11 11 11 1 . . . . . 2 2 4 . . . . Core 4 | . 10 12 . . . 9 8 8 9 6 6 2 2 . . . . . Reactor 2 | . . . . . . . . . . . . . . . 5 5 8 8 Treads 21 | . 27 28 33 26 22 . 27 36 36 26 26 22 22 12 15 15 14 14 Leg 2 | . . . . . . 20 4 . . . . . . . . . . . Wheel 1 | . . . . . . 8 2 . . . . . . . . . . . Device 9 | . 14 14 11 4 . . 5 1 . . 6 6 10 10 10 10 20 22 Storage 7 | . 14 14 11 11 11 11 10 9 9 6 6 5 5 5 5 5 4 3 Processor 4 | . . . . . . . 8 9 9 6 6 10 11 2 . . . . Hackware 3 | . . . . . . . . 7 9 6 6 5 5 5 5 5 4 3 Protection 9 | . . . 10 11 11 13 6 8 9 6 9 10 9 16 21 21 11 7 Energy Gun 4 | . 28 18 11 11 11 1 . 2 9 6 6 2 4 . . . . . Energy Cannon 4 | . . . . . . 6 6 2 . . 6 5 3 10 10 9 8 7 Ballistic Gun 6 | . . 9 11 11 11 . 11 4 . . 6 10 13 10 10 10 8 2 Ballistic Cannon 2 | . . . . . . . . 8 9 6 6 1 . . . . . 6 Peak Build Rating 183 | 7 9 11 14 16 16 29 45 44 38 47 56 83 91 138 154 161 183 171 Average Rating 72 | 5 8 9 13 14 15 23 36 37 37 39 51 74 85 110 154 158 172 152 On Entrance 58 | . 7 9 11 14 15 16 28 40 36 38 47 56 83 86 138 154 161 164 Naked Turns . | . . . . . . . . . . . . . . . . . . . Heaviest Build 205 | 11 13 17 34 36 35 40 58 41 64 75 75 103 101 123 123 163 181 205 Greatest Support 240 | 40 40 40 60 60 40 55 112 112 80 80 88 104 111 160 240 240 240 240 Greatest Overweight (x) 9 | . 4 . . . . 9 3 . . . . 1 1 1 . . . 2 Average Overweight (x) . | . . . . . . . . . . . . . . . . . . . Largest Inventory Capacity 25 | 8 8 8 15 15 15 15 15 15 20 20 20 20 20 20 20 25 25 25 Average Capacity 18 | 7 8 8 11 15 15 15 15 15 19 20 20 20 20 20 20 24 25 23 Most Carried 25 | 6 8 8 7 12 13 14 15 15 16 16 20 20 20 20 18 25 25 25 Average Carried 15 | 4 6 7 6 8 12 11 13 14 15 15 15 18 18 16 18 22 23 16 Final Capacity 25 | 8 8 8 15 15 15 15 15 15 20 20 20 20 20 20 20 25 25 25 Final Carried 25 | 4 8 8 7 12 13 14 15 15 16 12 18 20 19 20 18 25 18 23 Class Distribution -------------------- 33% | Mutant 29% | Scavenger-Tank 11% | Scavenger-Gunner 6% | Commander-Mutant 5% | Scavenger-Mutant 4% | Gunner 3% | Skirmisher 3% | Derelict-Mutant Dominant Class ---------------- Mutant | -10/Materials Mutant | -10/Mines Mutant | -9/Materials Mutant | -9/Mines Mutant | -9/Exiles Mutant | -8/Mines Scavenger-Mutant | -8/Materials Mutant | -8/Storage Commander-Mutant | -8/Recycling Commander-Mutant | -6/Factory Skirmisher | -6/DSF Gunner | -5/Factory Scavenger-Gunner | -5/Extension Scavenger-Tank | -5/Cetus Scavenger-Tank | -4/Factory Scavenger-Tank | -4/DSF Scavenger-Tank | -3/Research Scavenger-Tank | -3/Armory Resources | -11 -10 -10 -9 -9 -9 -8 -8 -8 -8 -6 -6 -5 -5 -5 -4 -4 -3 -3 ----------- Run | Yrd Mat Min Mat Min Exi Min Mat Sto Rec Fac DSF Fac Ext Cet Fac DSF Res Arm Matter Collected 6731 | 270 145 135 . 66 . 189 284 701 81 . 90 700 723 712 . 187 568 1880 Remotely . | . . . . . . . . . . . . . . . . . . . Salvage Created 11317 | 240 516 . . 170 . 461 648 793 190 . 371 1115 1458 1047 . 912 551 2845 Parts 511 | 21 30 . . 19 . 34 35 55 4 . 16 47 50 40 . 31 6 123 Haulers Intercepted 6 | . 1 . . . . . . 3 . . . 1 . . . . 1 . Recyclers Shooed 6 | . 1 . . . . 2 . . 1 . . 2 . . . . . . Parts Field Recycled . | . . . . . . . . . . . . . . . . . . . Retrieved Matter . | . . . . . . . . . . . . . . . . . . . Parts Self-Destructed . | . . . . . . . . . . . . . . . . . . . Prevented . | . . . . . . . . . . . . . . . . . . . Kills | -11 -10 -10 -9 -9 -9 -8 -8 -8 -8 -6 -6 -5 -5 -5 -4 -4 -3 -3 ------- Run | Yrd Mat Min Mat Min Exi Min Mat Sto Rec Fac DSF Fac Ext Cet Fac DSF Res Arm Combat Hostiles Destroyed 194 | . 9 . . 11 . 13 14 17 1 . 7 15 21 15 . 11 10 50 Melee 4 | . . . . . . 1 . . . . . . . . . . 3 . Guns 98 | . 9 . . 11 . 3 8 9 . . 2 10 20 7 . 7 1 11 Cannons 79 | . . . . . . 6 6 8 1 . 5 4 1 8 . 2 3 35 AOE 4 | . . . . . . 2 . . . . . . . . . . . 2 Classes Destroyed 21 | 3 4 . . . . 2 2 2 . . 1 4 . . . . 3 . Worker 4 | 1 1 . . . . 2 . . . . . . . . . . . . Builder 3 | . . . . . . 1 2 . . . . . . . . . . . Tunneler 7 | 7 . . . . . . . . . . . . . . . . . . Hauler 6 | . 1 . . . . . . 3 . . . 1 . . . . 1 . Recycler 7 | 1 2 . . . . 2 1 . 1 . . . . . . . . . Mechanic 1 | . . . . . . . . . . . . 1 . . . . . . Operator 3 | . . . . . . . . 2 . . . . . . . . . 1 Watcher 10 | . 2 . . . . . . 1 . . . 1 2 2 . . 1 1 Swarmer 48 | . 5 . . 11 . 8 6 3 . . . . 2 . . . 4 9 Cutter 2 | . . . . . . . . . . . . 2 . . . . . . Grunt 66 | . 4 . . . . 3 3 7 . . 3 4 13 7 . 4 . 18 Brawler 4 | . . . . . . . . 1 1 . . 1 . . . . . 1 Duelist 5 | . . . . . . . 1 . . . . 1 . . . . . 3 Sentry 20 | . . . . . . . 2 6 . . . 2 6 . . 1 . 3 Demolisher 5 | . . . . . . . . . . . . . . . . . 1 4 Specialist 11 | . . . . . . . . . . . 4 1 . . . 4 . 2 Hunter 9 | . . . . . . 2 2 . . . . 1 . . . . . 4 Programmer 8 | . . . . . . . . . . . . 2 . . . 1 . 5 Heavy 3 | . . . . . . . . . . . . 1 . . . 1 . 1 Cetus Guard 8 | . . . . . . . . . . . . . . 8 . . . . Striker 4 | . . . . . . . . . . . . . . . . . 4 . Executioner 1 | . . . . . . . . . . . . . . . . . 1 . Thug 1 | . . . . . . . . . . . . . 1 . . . . . Best Kill Streak 7 | 4 6 . . 4 . 6 7 4 1 . 3 4 4 5 . 7 6 5 Combat Bots Only 7 | . 5 . . 4 . 3 5 3 1 . 3 2 4 4 . 7 6 5 Max Kills in Single Turn 4 | 1 1 . . 1 . 2 2 1 1 . 1 1 2 2 . 1 1 4 Gunslinging 1 | . . . . . . . 1 . . . . . 1 . . . . . Exploded 2 | . . . . . . 1 . . . . . . . . . . . 2 Melee 1 | . . . . . . 1 . . . . . . . . . . 1 . Uniques/NPCs Destroyed . | . . . . . . . . . . . . . . . . . . . Combat | -11 -10 -10 -9 -9 -9 -8 -8 -8 -8 -6 -6 -5 -5 -5 -4 -4 -3 -3 -------- Run | Yrd Mat Min Mat Min Exi Min Mat Sto Rec Fac DSF Fac Ext Cet Fac DSF Res Arm Hostile Shots Fired 1668 | . 56 2 8 46 . 120 83 73 8 . 79 90 106 69 . 145 151 632 Missed 493 | . 17 2 1 14 . 31 19 21 4 . 28 20 32 24 . 66 39 175 Intercepted 8 | . . . . . . . . . . . . . . . . . . 8 Hits 1175 | . 39 . 7 32 . 89 64 52 4 . 51 70 74 45 . 79 112 457 Melee 63 | . . . . . . . 4 2 . . . 3 . . . . 19 35 Projectile 1112 | . 39 . 7 32 . 89 60 50 4 . 51 67 74 45 . 79 93 422 AOE 15 | . . . . . . . . . . . . . . . . . 4 11 Critical Strikes 58 | . . . 1 . . 3 4 3 . . 6 5 1 4 . 3 6 22 Actively Blocked 11 | . . . . . . . . 1 . . . . . . . . . 10 Part Disruptions 4 | . . . . . . . . . . . 1 1 . . . 1 . 1 Damage Taken 24463 | . 392 . 108 252 . 1125 916 651 53 . 1239 2024 1700 1221 . 1134 3706 9942 Core 2301 | . 53 . 16 50 . 222 160 60 7 . 108 23 188 83 . 30 247 1054 Absorbed by Shields 345 | . . . . . . . . . . . . . . . . . . 345 Reduced by Siege Mode 82 | . . . . . . . . . . . . . . . . . . 82 Redirected to Shielding 122 | . . . 9 17 . 81 2 13 . . . . . . . . . . Ignored by Resistances 291 | . . . . . . . . . . . . . 21 39 . . 14 217 Regen/Repaired (Parts) 26 | . . . . . . . 26 . . . . . . . . . . . Core Remaining (%) 74 | 100 . 78 . . . 28 . . 58 . 87 . . 70 . 97 . . Volleys Fired 589 | 17 38 . 7 29 . 44 43 58 4 . 16 56 49 68 . 20 35 105 Largest 4 | 2 2 . 2 2 . 2 2 2 2 . 4 4 4 4 . 4 4 4 Hottest 358 | 80 80 . 60 76 . 135 135 105 92 . 193 220 212 239 . 280 358 356 Shots Fired 1626 | 34 76 . 8 56 . 68 83 116 8 . 60 181 172 195 . 75 139 355 Gun 914 | 34 76 . 8 56 . 30 36 50 4 . 32 125 163 117 . 38 64 81 Cannon 706 | . . . . . . 32 47 66 4 . 28 56 9 78 . 37 75 274 Launcher 6 | . . . . . . 6 . . . . . . . . . . . . Special . | . . . . . . . . . . . . . . . . . . . Kinetic 851 | . . . 7 29 . 15 36 98 4 . 28 104 114 117 . 38 63 198 Thermal 673 | 34 76 . 1 27 . 47 47 18 4 . 32 53 . 64 . 37 76 157 Explosive 6 | . . . . . . 6 . . . . . . . . . . . . Electromagnetic 96 | . . . . . . . . . . . . 24 58 14 . . . . Robot Hit Streak 24 | 5 8 . 4 4 . 18 6 11 4 . 12 9 12 13 . 11 8 24 Robot Miss Streak 10 | 3 6 . 1 3 . 5 4 6 3 . 4 5 2 6 . 3 6 10 Penetration Max 1 | . . . . . . . 1 1 . . 1 1 1 1 . 1 . . Secondary Targets 11 | . . . . 5 . 1 2 . . . . . 3 . . . . . Max Gunslinging Chain 2 | . . . . 1 . 1 1 . . . . . 2 . . . . . Shots Hit Robots 872 | 20 48 . 6 26 . 40 44 76 7 . 36 105 92 66 . 50 67 189 Core Hits 470 | 10 26 . 3 12 . 23 25 64 6 . 24 49 57 41 . 18 17 95 Critical Kills 27 | . . . . . . . . 1 . . . 4 6 5 . 6 2 3 Critical Parts Destroyed 16 | . . . . . . . . . . . . 4 2 4 . 1 2 3 Critical Strikes 57 | . . . . 1 . . . 1 . . 1 8 9 10 . 7 9 11 Burn 2 | . . . . 1 . . . . . . 1 . . . . . . . Meltdown 8 | . . . . . . . . . . . . 2 . . . 2 2 2 Destroy 41 | . . . . . . . . 1 . . . 6 9 9 . 5 7 4 Blast 5 | . . . . . . . . . . . . . . . . . . 5 Corrupt 1 | . . . . . . . . . . . . . . 1 . . . . Melee Attacks 5 | . . . . . . 5 . . . . . . . . . . . . Impact . | . . . . . . . . . . . . . . . . . . . Slashing 5 | . . . . . . 5 . . . . . . . . . . . . Piercing . | . . . . . . . . . . . . . . . . . . . Sneak Attacks 2 | . . . . . . 2 . . . . . . . . . . . . Combat Hostiles . | . . . . . . . . . . . . . . . . . . . Follow-up Attacks . | . . . . . . . . . . . . . . . . . . . Damage Inflicted 26452 | 227 532 . 55 289 . 1210 1054 1404 178 . 794 2674 2424 2157 . 1867 2506 9081 Guns 10898 | 227 532 . 55 289 . 183 476 664 69 . 430 1712 2210 1136 . 776 759 1380 Cannons 13947 | . . . . . . 428 578 732 92 . 364 802 203 1021 . 1091 1478 7158 Explosions 1073 | . . . . . . 418 . . . . . 135 . . . . . 520 Melee 181 | . . . . . . 181 . . . . . . . . . . . . Ramming 353 | . . . . . . . . 8 17 . . 25 11 . . . 269 23 Kinetic 12939 | . . . 43 104 . 80 476 1197 92 . 383 1411 1820 1136 . 776 759 4662 Thermal 10787 | 227 532 . 12 185 . 531 578 199 69 . 411 862 . 736 . 1091 1478 3876 Explosive 938 | . . . . . . 418 . . . . . . . . . . . 520 Electromagnetic 1254 | . . . . . . . . . . . . 376 593 285 . . . . Impact . | . . . . . . . . . . . . . . . . . . . Slashing 181 | . . . . . . 181 . . . . . . . . . . . . Piercing . | . . . . . . . . . . . . . . . . . . . Highest Corruption 21 | . . . . . . . . . . . . 4 7 21 . 2 2 12 Average Corruption 5 | . . . . . . . . . . . . 2 4 16 . 1 1 5 Corruption Purged . | . . . . . . . . . . . . . . . . . . . Corruption Blocked . | . . . . . . . . . . . . . . . . . . . Effects 121 | . . . . . . . . . . . . 11 20 45 . . 11 34 Message Errors 25 | . . . . . . . . . . . . . 6 12 . . 3 4 Matter Fused 27 | . . . . . . . . . . . . 8 5 7 . . 3 4 Heat Flow Errors 16 | . . . . . . . . . . . . . 2 3 . . 1 10 Energy Discharges 12 | . . . . . . . . . . . . 2 1 3 . . 1 5 Parts Rejected 1 | . . . . . . . . . . . . . . 1 . . . . Parts Fused 3 | . . . . . . . . . . . . . . 3 . . . . Data Loss (minor) 14 | . . . . . . . . . . . . 1 2 6 . . 1 4 Data Loss (major) 6 | . . . . . . . . . . . . . 2 1 . . 1 2 Misfires 5 | . . . . . . . . . . . . . 1 1 . . 1 2 Alerts 2 | . . . . . . . . . . . . . . 1 . . . 1 Weapon Failures 10 | . . . . . . . . . . . . . 1 7 . . . 2 Overload Shots . | . . . . . . . . . . . . . . . . . . . Overflow Damage 449 | . . . . . . 51 22 . . . . 10 27 23 . . 53 263 Projectiles 403 | . . . . . . 5 22 . . . . 10 27 23 . . 53 263 Explosions . | . . . . . . . . . . . . . . . . . . . Melee 46 | . . . . . . 46 . . . . . . . . . . . . Knockbacks 39 | . . . . . . . . 9 5 . 1 4 . . . . 1 19 Impact 4 | . . . . . . . . . 1 . . 2 . . . . 1 . Kinetic 33 | . . . . . . . . 9 3 . 1 2 . . . . . 18 Secondary 2 | . . . . . . . . . 1 . . . . . . . . 1 Self-Inflicted Damage 130 | . . . . . . . . . . . . 114 . . . . . 16 Shots 2 | . . . . . . . . . . . . 1 . . . . . 1 Rammed 18 | . . . . . . . . 1 1 . . 3 1 . . . 12 . Targets Rammed 27 | . . . . . . . . 2 2 . . 3 1 . . . 15 4 Kicked 4 | . . . . . . . . . . . . . . . . . . 4 Crushed 5 | . . . . . . . . 1 1 . . . . . . . 3 . Highest Temperature 769 | 54 176 . 16 124 . 360 417 282 66 . 133 393 257 277 . 120 401 769 Average Temperature 106 | 22 56 . 7 52 . 110 154 47 29 . 49 102 54 65 . 16 109 195 Received Heat Transfer 3678 | . 114 . 54 . . 297 162 261 9 . 295 270 324 252 . 39 49 1552 Effects 56 | . . . . . . 2 6 . . . . 1 . . . . . 47 Shutdowns 15 | . . . . . . . 2 . . . . . . . . . . 13 Energy Bleed 8 | . . . . . . . 1 . . . . 1 . . . . . 6 Interference 15 | . . . . . . 2 3 . . . . . . . . . . 10 Matter Decay 5 | . . . . . . . . . . . . . . . . . . 5 Short Circuit 2 | . . . . . . . . . . . . . . . . . . 2 Damage (minor) 3 | . . . . . . . . . . . . . . . . . . 3 Damage (major) 7 | . . . . . . . . . . . . . . . . . . 7 Damage (core) 1 | . . . . . . . . . . . . . . . . . . 1 Siege Activations 1 | . . . . . . . . . . . . . . . . . . 1 Total Turns 20 | . . . . . . . . . . . . . . . . . . 20 Longest Duration 20 | . . . . . . . . . . . . . . . . . . 20 Martial Activations . | . . . . . . . . . . . . . . . . . . . Shielding Activations . | . . . . . . . . . . . . . . . . . . . Robots Disrupted 2 | . . . . . . . . . . . . 1 1 . . . . . Combat Hostiles 2 | . . . . . . . . . . . . 1 1 . . . . . Robots Corrupted 1 | . . . . . . . . . . . . . . . . . . 1 Combat Hostiles 1 | . . . . . . . . . . . . . . . . . . 1 Parts Fried 3 | . . . . . . . . . . . . 1 1 . . . . 1 Impact Corruptions 1 | . . . . . . . . . . . . . . . . . . 1 Robots Melted 10 | . . . . . . 1 . . . . . 2 . . . 2 3 2 Combat Hostiles 8 | . . . . . . 1 . . . . . 1 . . . 2 3 1 Parts Melted 25 | 2 1 . . . . 1 1 . . . 1 3 . 1 . 4 5 6 Heat Transferred 14182 | 525 1225 . 25 531 . 925 999 370 111 . 851 1469 . 1150 . 1136 1517 3348 Parts Sabotaged 8 | . . . . . . . . . . . . . . . . . . 8 Parts Stolen . | . . . . . . . . . . . . . . . . . . . Parts Stripped . | . . . . . . . . . . . . . . . . . . . Power Chain Reactions 1 | . . . . . . . . . . . . 1 . . . . . . Alert | -11 -10 -10 -9 -9 -9 -8 -8 -8 -8 -6 -6 -5 -5 -5 -4 -4 -3 -3 ------- Run | Yrd Mat Min Mat Min Exi Min Mat Sto Rec Fac DSF Fac Ext Cet Fac DSF Res Arm Maximum Alert Level 4 | . . . . . . . . . . . . . 1 . . 1 . 4 Low Security (%) 86 | 100 100 100 100 100 . 100 100 100 100 100 100 100 50 100 100 56 100 7 Level 1 5 | . . . . . . . . . . . . . 49 . . 43 . 11 Level 2 1 | . . . . . . . . . . . . . . . . . . 13 Level 3 4 | . . . . . . . . . . . . . . . . . . 42 Level 4 2 | . . . . . . . . . . . . . . . . . . 23 Level 5 . | . . . . . . . . . . . . . . . . . . . High Security . | . . . . . . . . . . . . . . . . . . . Max Security . | . . . . . . . . . . . . . . . . . . . Sterilizations 2 | . . . . . . . . . . . 1 . . . . 1 . . Peak Influence 1248 | 10 136 5 8 96 . 120 143 198 110 54 155 161 291 181 50 311 174 1248 Initial 174 | . 6 5 . . . . 40 39 48 50 37 81 66 152 50 35 174 60 Average 140 | 1 53 . . 25 . 18 73 111 28 51 80 83 182 123 50 175 36 780 Influence Increases 7200 | 45 285 . 8 283 . 396 449 633 301 54 275 563 958 403 . 276 369 1902 Destroy 0b10 Robot/C 4220 | . 180 . . 220 . 260 280 360 160 . 160 300 580 300 . 220 200 1000 Destroy 0b10 Robot/NC 215 | 45 30 . . . . 25 15 30 10 . . 15 10 10 . 5 10 10 Destroy Leader 758 | . 46 . . 30 . 60 70 108 . . 30 84 64 10 . 30 44 182 Allied During Kill 261 | . . . . 18 . . . 26 109 . 25 . 83 . . . . . Successful Hack 279 | . 29 . 8 . . . 63 32 22 4 . 38 20 8 . . 28 27 Disable Machine 555 | . . . . . . 15 15 60 . . . 60 105 30 . 15 30 225 Destroy Structure 577 | . . . . . . 21 6 2 . . . 66 66 30 . 6 42 338 Advance Influence 50 | . . . . . . . . . . 50 . . . . . . . . Lose Combat Pursuer 285 | . . . . 15 . 15 . 15 . . 60 . 30 15 . . 15 120 Influence Decreases 6096 | 35 281 14 8 283 . 292 460 602 425 . 174 581 821 586 41 15 565 913 Entered New Map 739 | . 4 9 . . . . 64 54 76 . 17 74 71 122 41 15 137 55 Time Decay 4049 | 35 277 5 8 273 . 211 356 538 229 . . 437 470 374 . . 318 518 Lost Part 771 | . . . . 10 . 81 40 . . . 20 60 40 90 . . 90 340 Lost Ally 537 | . . . . . . . . 10 120 . 137 10 240 . . . 20 . Squads Dispatched 39 | . 1 1 . . . . 2 2 . . 3 6 2 2 . 2 8 10 Investigation 13 | . 1 1 . . . . 1 . . . . . 2 2 . . 5 1 Extermination 3 | . . . . . . . . . . . . 1 . . . . . 2 Reinforcement 18 | . . . . . . . 1 2 . . 3 4 . . . 2 3 3 Assault 4 | . . . . . . . . . . . . . . . . . . 4 Garrison 1 | . . . . . . . . . . . . 1 . . . . . . Intercept . | . . . . . . . . . . . . . . . . . . . Searches Triggered . | . . . . . . . . . . . . . . . . . . . Construction Impeded . | . . . . . . . . . . . . . . . . . . . Haulers Reinforced 2 | . . . . . . . . . . . . 1 . . . . 1 . Active Scanning Responses . | . . . . . . . . . . . . . . . . . . . Cargo Convoy Interrupts . | . . . . . . . . . . . . . . . . . . . Stealth | -11 -10 -10 -9 -9 -9 -8 -8 -8 -8 -6 -6 -5 -5 -5 -4 -4 -3 -3 --------- Run | Yrd Mat Min Mat Min Exi Min Mat Sto Rec Fac DSF Fac Ext Cet Fac DSF Res Arm Distress Signals 25 | . 2 . . . . . 1 2 . . . . 2 2 . . 13 3 Communications Jammed . | . . . . . . . . . . . . . . . . . . . Distress Signals . | . . . . . . . . . . . . . . . . . . . Times Spotted 307 | . 19 3 4 12 . 15 16 22 8 . 15 21 33 16 . 11 24 88 Peak Tracking Total 19 | . 4 3 1 4 . 4 4 3 5 . 4 3 6 5 . 4 7 19 Tactical Retreats 16 | . . . . 1 . 1 . 1 . . 3 1 2 1 . . 1 5 Traps | -11 -10 -10 -9 -9 -9 -8 -8 -8 -8 -6 -6 -5 -5 -5 -4 -4 -3 -3 ------- Run | Yrd Mat Min Mat Min Exi Min Mat Sto Rec Fac DSF Fac Ext Cet Fac DSF Res Arm Traps Triggered 4 | . 1 . . . . . . . . . . 1 . . . 1 1 . Indirectly . | . . . . . . . . . . . . . . . . . . . Trap Hack Attempts . | . . . . . . . . . . . . . . . . . . . Triggered . | . . . . . . . . . . . . . . . . . . . Disarmed . | . . . . . . . . . . . . . . . . . . . Reprogrammed . | . . . . . . . . . . . . . . . . . . . Reused . | . . . . . . . . . . . . . . . . . . . Traps Extracted . | . . . . . . . . . . . . . . . . . . . Installed . | . . . . . . . . . . . . . . . . . . . Triggered . | . . . . . . . . . . . . . . . . . . . Machines | -11 -10 -10 -9 -9 -9 -8 -8 -8 -8 -6 -6 -5 -5 -5 -4 -4 -3 -3 ---------- Run | Yrd Mat Min Mat Min Exi Min Mat Sto Rec Fac DSF Fac Ext Cet Fac DSF Res Arm Machines Disabled 39 | . . . . . . 1 1 4 . . . 4 7 3 . 2 2 15 Max in Single Turn 4 | . . . . . . 1 1 1 . . . 1 4 1 . 1 1 3 Garrison Access 2 | . . . . . . . . . . . . 1 . . . . 1 . Energy Cycler 3 | . . . . . . . . . . . . . 2 . . . . 1 Machines Repaired . | . . . . . . . . . . . . . . . . . . . Machines Dismantled . | . . . . . . . . . . . . . . . . . . . Machines Sabotaged . | . . . . . . . . . . . . . . . . . . . Overloaded Fab Kills . | . . . . . . . . . . . . . . . . . . . Hacking | -11 -10 -10 -9 -9 -9 -8 -8 -8 -8 -6 -6 -5 -5 -5 -4 -4 -3 -3 --------- Run | Yrd Mat Min Mat Min Exi Min Mat Sto Rec Fac DSF Fac Ext Cet Fac DSF Res Arm Machines Accessed 50 | . 4 1 1 . 1 . 4 7 5 1 . 9 5 3 1 . 5 3 Terminals 39 | . 4 . 1 . . . 3 7 3 1 . 6 5 3 1 . 3 2 Fabricators 3 | . . . . . . . . . . . . 2 . . . . . 1 Repair Stations 1 | . . . . . . . 1 . . . . . . . . . . . Recycling Units 2 | . . . . . . . . . 2 . . . . . . . . . Scanalyzers 1 | . . . . . . . . . . . . . . . . . 1 . Garrison Access 2 | . . . . . . . . . . . . 1 . . . . 1 . Total Hacks 128 | . 12 1 2 . 1 . 11 25 12 1 . 17 17 7 2 . 14 6 Successful 72 | . 4 1 2 . 1 . 8 17 10 1 . 10 9 3 1 . 4 1 Failed 56 | . 8 . . . . . 3 8 2 . . 7 8 4 1 . 10 5 Catastrophic 18 | . 3 . . . . . 1 1 1 . . 2 1 . . . 6 3 Database Lockouts . | . . . . . . . . . . . . . . . . . . . Manual 44 | . 12 . 2 . 1 . 6 9 3 . . 6 2 . . . 3 . Terminals 110 | . 12 . 2 . . . 9 25 10 1 . 12 17 7 2 . 9 4 Fabricators 4 | . . . . . . . . . . . . 2 . . . . . 2 Repair Stations 2 | . . . . . . . 2 . . . . . . . . . . . Recycling Units 2 | . . . . . . . . . 2 . . . . . . . . . Scanalyzers 3 | . . . . . . . . . . . . . . . . . 3 . Garrison Access 5 | . . . . . . . . . . . . 3 . . . . 2 . Terminal Hacks 50 | . . 1 1 . 1 . 4 14 7 1 . 6 9 3 1 . 2 . Record 8 | . . . . . . . . . 1 . . . 4 2 . . 1 . Part Schematic 3 | . . . . . . . . 1 2 . . . . . . . . . Robot Schematic 4 | . . . . . . . . 3 . . . . 1 . . . . . Robot Analysis 1 | . . . . . . . . . . . . . 1 . . . . . Prototype ID Bank 3 | . . . . . . . 1 1 1 . . . . . . . . . Open Door 6 | . . 1 . . . . . 2 . . . 1 1 1 . . . . Open DSF 4 | . . . . . . . . . . 1 . 1 . . 1 . 1 . Level Access Points 1 | . . . . . . . . . 1 . . . . . . . . . Branch Access Points 4 | . . . 1 . . . 1 1 . . . 1 . . . . . . Emergency Access Points 2 | . . . . . . . 1 . . . . 1 . . . . . . Alert Level 4 | . . . . . . . . 2 1 . . . 1 . . . . . Locate Traps 2 | . . . . . . . . 2 . . . . . . . . . . Registered Components 3 | . . . . . . . 1 1 1 . . . . . . . . . Zone Layout 4 | . . . . . . . . 1 . . . 2 1 . . . . . Proto ID Catalog 1 | . . . . . 1 . . . . . . . . . . . . . Fabricator Hacks 3 | . . . . . . . . . . . . 2 . . . . . 1 Build 3 | . . . . . . . . . . . . 2 . . . . . 1 Repair Station Hacks 2 | . . . . . . . 2 . . . . . . . . . . . Scan Component 1 | . . . . . . . 1 . . . . . . . . . . . Repair 1 | . . . . . . . 1 . . . . . . . . . . . Recycling Unit Hacks 2 | . . . . . . . . . 2 . . . . . . . . . Report Inventory 2 | . . . . . . . . . 2 . . . . . . . . . Scanalyzer 1 | . . . . . . . . . . . . . . . . . 1 . Insert Component 1 | . . . . . . . . . . . . . . . . . 1 . Garrison Access Hacks 1 | . . . . . . . . . . . . 1 . . . . . . Seal Access 1 | . . . . . . . . . . . . 1 . . . . . . Unauthorized Hacks 13 | . 4 . 1 . . . 2 3 1 . . 1 . . . . 1 . Terminals 13 | . 4 . 1 . . . 2 3 1 . . 1 . . . . 1 . Botnet 13 | . 4 . 1 . . . 2 3 1 . . 1 . . . . 1 . Fabricators . | . . . . . . . . . . . . . . . . . . . Repair Stations . | . . . . . . . . . . . . . . . . . . . Recycling Units . | . . . . . . . . . . . . . . . . . . . Scanalyzers . | . . . . . . . . . . . . . . . . . . . Garrison Access . | . . . . . . . . . . . . . . . . . . . Data Cores Recovered 2 | . . . . . . . . 1 . . . . . . . . . 1 Used 1 | . . . . . . . . . . . . . . . . . . 1 Hacking Detections 35 | . 4 . 1 . . . 3 8 2 . . 4 4 2 . . 4 3 Full Trace Events 11 | . 2 . . . . . 1 . 1 . . . 2 2 . . 2 1 Feedback Events 2 | . . . . . . . . . . . . . . 2 . . . . Corruption 1 | . . . . . . . . . . . . . . 1 . . . . Hackware Fried 1 | . . . . . . . . . . . . . . 1 . . . . Feedback Blocked . | . . . . . . . . . . . . . . . . . . . Robot Schematics Acquired 4 | . . . . . . . . 3 . . . . 1 . . . . . Robots Built 1 | . . . . . . . . . . . . 1 . . . . . . Authchips . | . . . . . . . . . . . . . . . . . . . Time 121 | . . . . . . . . . . . . 121 . . . . . . Total Robot Build Rating 1 | . . . . . . . . . . . . 1 . . . . . . Part Schematics Acquired 3 | . . . . . . . . 1 2 . . . . . . . . . Parts Built 2 | . . . . . . . . . . . . . . . . . . 2 Authchips . | . . . . . . . . . . . . . . . . . . . Time 42 | . . . . . . . . . . . . . . . . . . 42 Total Part Build Rating 16 | . . . . . . . . . . . . . . . . . . 16 Parts Repaired 1 | . . . . . . . 1 . . . . . . . . . . . Time 108 | . . . . . . . 108 . . . . . . . . . . . Parts Recycled . | . . . . . . . . . . . . . . . . . . . Recycled Matter . | . . . . . . . . . . . . . . . . . . . Retrieved Matter . | . . . . . . . . . . . . . . . . . . . Retrieved Components . | . . . . . . . . . . . . . . . . . . . Parts Scanalyzed . | . . . . . . . . . . . . . . . . . . . Part Schematics Acquired . | . . . . . . . . . . . . . . . . . . . Parts Damaged . | . . . . . . . . . . . . . . . . . . . Bothacking | -11 -10 -10 -9 -9 -9 -8 -8 -8 -8 -6 -6 -5 -5 -5 -4 -4 -3 -3 ------------ Run | Yrd Mat Min Mat Min Exi Min Mat Sto Rec Fac DSF Fac Ext Cet Fac DSF Res Arm Used RIF Installer . | . . . . . . . . . . . . . . . . . . . Robots Hacked . | . . . . . . . . . . . . . . . . . . . Non-combat . | . . . . . . . . . . . . . . . . . . . Combat . | . . . . . . . . . . . . . . . . . . . Robot Hacks Applied . | . . . . . . . . . . . . . . . . . . . Relay Couplers Released 1 | . . . . . . . . . . . . . . . . . 1 . Machine Destruction 1 | . . . . . . . . . . . . . . . . . 1 . Fabnet Peak Effective % . | . . . . . . . . . . . . . . . . . . . Robots Rewired 20 | . . . . . . . . . 7 . . . 13 . . . . . Allies Hacked . | . . . . . . . . . . . . . . . . . . . Hacks Repelled . | . . . . . . . . . . . . . . . . . . . Allies | -11 -10 -10 -9 -9 -9 -8 -8 -8 -8 -6 -6 -5 -5 -5 -4 -4 -3 -3 -------- Run | Yrd Mat Min Mat Min Exi Min Mat Sto Rec Fac DSF Fac Ext Cet Fac DSF Res Arm Total Allies 35 | . . . . 3 . . . 10 7 . . 1 14 . . . . . Largest Group 14 | . . . . 3 2 . . 10 14 11 11 1 4 . . . . . Highest-Rated Group 198 | . . . . 75 44 . . 173 198 172 172 10 101 . . . . . Highest-Rated Ally 39 | . . . . 31 31 . . 29 29 29 29 10 39 . . . . . Initial Warlord ECA Mod 77 | . . . . . . . . . . . . 9 9 9 8 8 17 17 Total Orders 4 | . . . . . . . . 3 . . . . . . . . 1 . EXPLORE 4 | . . . . . . . . 3 . . . . . . . . 1 . Ally Attacks 132 | . . . . . . . . 7 31 . 24 . 70 . . . . . Total Damage 1841 | . . . . . . . . 63 352 . 349 . 1077 . . . . . Kills 18 | . . . . . . . . 1 7 . 1 . 9 . . . . . Allies Corrupted . | . . . . . . . . . . . . . . . . . . . Allies Melted . | . . . . . . . . . . . . . . . . . . . Intel | -11 -10 -10 -9 -9 -9 -8 -8 -8 -8 -6 -6 -5 -5 -5 -4 -4 -3 -3 ------- Run | Yrd Mat Min Mat Min Exi Min Mat Sto Rec Fac DSF Fac Ext Cet Fac DSF Res Arm Active Infowar (turns) 4965 | 3 744 272 228 427 . 87 449 . . . . 375 14 449 . . 1896 21 Sensors 539 | . . . . . . 87 449 . . . . . . . . . 3 . Terrain 1914 | . . . . . . . . . . . . . . . . . 1893 21 Seismic 1674 | 3 744 272 228 427 . . . . . . . . . . . . . . Jamming 463 | . . . . . . . . . . . . . 14 449 . . . . ECM 375 | . . . . . . . . . . . . 375 . . . . . . Robot Analysis Total 1 | . . . . . . . . . . . . . 1 . . . . . Derelict Logs Recovered 1 | . . . . 1 . . . . . . . . . . . . . . Drone Launches 6 | . . . . . . . . 4 . . . . . . . . 2 . Drone Recoveries 3 | . . . . . . . . 3 . . . . . . . . . . Exploration | -11 -10 -10 -9 -9 -9 -8 -8 -8 -8 -6 -6 -5 -5 -5 -4 -4 -3 -3 ------------- Run | Yrd Mat Min Mat Min Exi Min Mat Sto Rec Fac DSF Fac Ext Cet Fac DSF Res Arm Turns Passed 14733 | 292 744 272 228 1047 379 1409 886 1524 838 15 326 1150 1198 862 9 236 1898 1420 Spaces Moved 6619 | 149 337 151 123 557 237 620 337 588 382 7 151 515 511 328 6 92 1018 510 Core 15 | 13 1 . . . . 1 . . . . . . . . . . . . Treads 5869 | 136 336 151 123 557 237 19 255 588 382 7 151 515 511 328 6 92 1018 457 Legs 516 | . . . . . . 463 . . . . . . . . . . . 53 Wheels 219 | . . . . . . 137 82 . . . . . . . . . . . Hover . | . . . . . . . . . . . . . . . . . . . Flight . | . . . . . . . . . . . . . . . . . . . Fastest Speed 50 | 50 160 160 160 160 160 130 115 160 170 170 167 162 160 160 160 160 160 120 Average Speed 162 | 150 160 160 160 160 160 143 152 166 170 170 169 170 176 164 160 160 160 167 Slowest Speed 500 | 160 250 160 160 160 160 500 320 170 170 170 170 246 243 240 160 160 160 260 Overloaded Moves . | . . . . . . . . . . . . . . . . . . . Propulsion Burnouts . | . . . . . . . . . . . . . . . . . . . Robots Hopped . | . . . . . . . . . . . . . . . . . . . Potential Cave-ins 15 | . . . . . . . . . . . . . . 15 . . . . Cave-ins Triggered 2 | . . . . . . . . . . . . . 1 1 . . . . Exploration Rate (%) 52 | 7 54 37 19 72 62 84 30 77 84 1 86 16 76 88 . 88 33 31 Regions Visited 18 Branch Regions 9 Pre-discovered Areas . | . . . . . . . . . . . . . . . . . . . Known Exits Taken 7 | . . . 1 . . . 1 1 1 1 . 1 . . 1 . . . Unknown Exits Taken 9 | 1 1 1 . 1 1 1 . . . . . . 1 1 . . 1 . Scrap Searched 8 | . . 2 . 3 . 3 . . . . . . . . . . . . Spaces Dug 26 | . . . . . . . 4 . . . . 6 . 12 . . 4 . Terrain Destroyed 384 | . . . . . . 27 7 1 . . 1 39 54 33 . 3 30 189 Melee . | . . . . . . . . . . . . . . . . . . . Projectile 271 | . . . . . . 6 7 1 . . 1 11 32 33 . 3 30 147 AOE 113 | . . . . . . 21 . . . . . 28 22 . . . . 42 Terrain Rammed . | . . . . . . . . . . . . . . . . . . . Walls Destroyed . | . . . . . . . . . . . . . . . . . . . Machines Disabled . | . . . . . . . . . . . . . . . . . . . Actions | -11 -10 -10 -9 -9 -9 -8 -8 -8 -8 -6 -6 -5 -5 -5 -4 -4 -3 -3 --------- Run | Yrd Mat Min Mat Min Exi Min Mat Sto Rec Fac DSF Fac Ext Cet Fac DSF Res Arm Total 9401 | 183 465 185 148 663 237 1064 631 1027 561 10 185 663 693 507 6 134 1193 846 Wait 1404 | . 75 21 13 70 . 367 203 301 121 . 3 29 16 57 . 1 48 79 Move 6600 | 148 336 150 122 556 236 619 336 587 381 6 150 514 510 326 5 91 1017 510 Hop . | . . . . . . . . . . . . . . . . . . . Pick Up 230 | 11 7 6 2 6 1 13 21 20 1 . 9 19 12 13 . 10 27 52 Fast Attach 31 | . 3 . . . . . . 13 . . . 5 . 7 . 1 1 1 Attach 146 | 7 1 2 2 . . 10 15 4 . 4 3 14 8 10 1 4 16 45 Detach 12 | . . . . . . . 2 1 . . . 3 . 1 . . . 5 Swap 64 | . 2 . 1 1 . 4 . 7 2 . 1 6 7 9 . 1 12 11 Drop 161 | . 3 6 1 1 . 2 11 34 1 . 3 14 8 15 . 6 22 34 Fire 589 | 17 38 . 7 29 . 44 43 58 4 . 16 56 49 68 . 20 35 105 Melee 5 | . . . . . . 5 . . . . . . . . . . . . Ram . | . . . . . . . . . . . . . . . . . . . Kick 4 | . . . . . . . . . . . . . . . . . . 4 Crush 23 | . . . . . . . . 2 2 . . 3 1 . . . 15 . Escape Stasis 1 | . . . . . . . . . . . . . . 1 . . . . Rewire 131 | . . . . . . . . . 49 . . . 82 . . . . . Trap . | . . . . . . . . . . . . . . . . . . . Miscellaneous . | . . . . . . . . . . . . . . . . . . . Route ------- -11/Scrapyard -10/Materials (discovered 3 exits: *Mat / *Min / [*Sub]) -10/Mines -9/Materials (discovered 2 exits: *Min x2) -9/Mines (discovered 3 exits: *Mat x2 / *Exi) -9/Exiles -8/Mines (discovered 2 exits: *Mat x2) -8/Materials (discovered 3 exits: [*Fac] / *Sto x2) -8/Storage (discovered 2 exits: [*Fac] / *Rec) -8/Recycling -6/Factory -6/DSF -5/Factory (discovered 5 exits: Fac / *Upp x2 / *Ext x2) -5/Extension (discovered 3 exits: *Fac x2 / *Cet) -5/Cetus (discovered 2 exits: *Fac / [*Arc]) -4/Factory -4/DSF -3/Research (discovered 2 exits: [*Res] / *Arm) -3/Armory History --------- Turn | Location | Event 2 | -11/Scrapyard | Discovered new exit (range 16) 293 | -11/Scrapyard | Entered Materials 311 | -10/Materials | Build established: Mutant 617 | -10/Materials | Discovered new exit (range 12) 732 | -10/Materials | Discovered new exit (range 4) 990 | -10/Materials | Discovered new exit (range 7) 1037 | -10/Materials | Entered Mines 1063 | -10/Mines | A weapon hastily lodged in a ceiling crevice suddenly fell to the ground 1123 | -10/Mines | Met a Derelict bent on vengeance 1156 | -10/Mines | Assembled infested the area 1254 | -10/Mines | Discovered new exit (range 4) 1270 | -10/Mines | Met a Derelict shopkeep closing up shop 1309 | -10/Mines | Entered Materials 1309 | -9/Materials | Evolved 2 slots: Propulsion x1, Utility x1 1380 | -9/Materials | Identified exit to Mines 1537 | -9/Materials | Entered Mines 1739 | -9/Mines | Learned Materials emergency access door positions 1868 | -9/Mines | Discovered new exit (range 5) 1944 | -9/Mines | Found a damaged Exp. Sensor Array with a note attached 1947 | -9/Mines | Found Prototype Device 1985 | -9/Mines | Discovered new exit (range 6) 2074 | -9/Mines | Discovered new exit (range 4) 2173 | -9/Mines | Received a Mining Laser from a helpful Derelict 2562 | -9/Mines | Deemed a non-threat by the Exiles lab entrance 2584 | -9/Mines | Entered Exiles 2584 | -9/Exiles | Accompanied by 2 allies 2614 | -9/Exiles | Led the pair of lost Derelicts to a safe place 2623 | -9/Exiles | Met 8R-AWN 2650 | -9/Exiles | Met EX-HEX 2696 | -9/Exiles | Met EX-BIN 2716 | -9/Exiles | Aligned with FarCom system 2717 | -9/Exiles | Given EX-Vault access code 2789 | -9/Exiles | Opened EX-Vault 2800 | -9/Exiles | Found Superbattery 2833 | -9/Exiles | Warned to stay clear of 0b10 Research branches 2855 | -9/Exiles | Exiles lab attacked by MAIN.C 2950 | -9/Exiles | Discovered new exit (range 10) 2963 | -9/Exiles | Left Exiles lab with Superbattery 2963 | -9/Exiles | Entered Mines 3061 | -8/Mines | Core integrity fell below 50% 3112 | -8/Mines | Lost 4 parts (1n3w) 3972 | -8/Mines | Build established: Derelict-Mutant 4285 | -8/Mines | Identified Exp. Sensor Array 4316 | -8/Mines | Discovered new exit (range 9) 4331 | -8/Mines | Discovered new exit (range 12) 4372 | -8/Mines | Entered Materials 4372 | -8/Materials | Evolved 2 slots: Propulsion x1, Utility x1 4599 | -8/Materials | Build established: Skirmisher 4968 | -8/Materials | Repaired Exp. Sensor Array 5058 | -8/Materials | Discovered new exit (range 15) 5121 | -8/Materials | Identified exit to Storage 5147 | -8/Materials | Build established: Scavenger-Mutant 5258 | -8/Materials | Entered Storage 5565 | -8/Storage | Identified exit to Recycling 5760 | -8/Storage | Discovered new exit (range 41) 6015 | -8/Storage | Build established: Mutant 6638 | -8/Storage | Assisted by bots powering up and referring to "LRC-V3" 6664 | -8/Storage | Allied Derelicts emerged from ambush trap array 6748 | -8/Storage | Used back door to open Recycling access 6782 | -8/Storage | Entered Recycling 6782 | -8/Recycling | Accompanied by 10 allies 6932 | -8/Recycling | Identified exit to Factory 6944 | -8/Recycling | Build established: Commander-Mutant 7169 | -8/Recycling | Lost 3 allies 7423 | -8/Recycling | Lost 3 allies 7620 | -8/Recycling | Entered Factory 7620 | -6/Factory | Accompanied by 11 allies 7620 | -6/Factory | Evolved 4 slots: Utility x2, Weapon x2 7629 | -6/Factory | Identified exit to DSF 7635 | -6/Factory | Entered DSF 7635 | -6/DSF | Accompanied by 11 allies 7672 | -6/DSF | Additional patrols routed to DSF 7696 | -6/DSF | Discovered new exit (range 15) 7793 | -6/DSF | Lost 11 allies 7859 | -6/DSF | Sterilization system engaged 7879 | -6/DSF | Ambient heat levels rising (+10) 7894 | -6/DSF | Ambient heat levels rising (+10) 7909 | -6/DSF | Ambient heat levels rising (+10) 7924 | -6/DSF | Ambient heat levels rising (+10) 7939 | -6/DSF | Ambient heat levels rising (+10) 7954 | -6/DSF | Ambient heat levels rising (+10) 7961 | -6/DSF | Entered Factory 7961 | -5/Factory | Evolved 2 slots: Utility x2 8184 | -5/Factory | Garrison activated, responded to threat 8276 | -5/Factory | Build established: Gunner 8404 | -5/Factory | Lost 4 parts (2n2u) 8522 | -5/Factory | Fabricated A-02 Transporter (x1) 8678 | -5/Factory | Identified exit to Upper Caves 8678 | -5/Factory | Identified exit to Extension 8970 | -5/Factory | Discovered new exit (range 19) 9069 | -5/Factory | Build established: Scavenger-Gunner 9111 | -5/Factory | Entered Extension 9120 | -5/Extension | Disrupted transfer network 9489 | -5/Extension | Energy Cycler disabled 9489 | -5/Extension | Rescued a captive Derelict 9491 | -5/Extension | Rescued a captive Derelict 9491 | -5/Extension | Rescued a captive Derelict 9493 | -5/Extension | Rescued a captive Derelict 9514 | -5/Extension | Rescued a captive Derelict 9728 | -5/Extension | Lost 4 allies 9815 | -5/Extension | Spotted B-75 Beast 9867 | -5/Extension | Lost 3 allies 9877 | -5/Extension | Discovered new exit (range 15) 9944 | -5/Extension | Extracted ID and sensor layout for unrecognized location from A7's data core 10218 | -5/Extension | Crushed by falling debris 10249 | -5/Extension | Lost 3 allies 10277 | -5/Extension | Discovered new exit (range 10) 10279 | -5/Extension | Discovered new exit (range 6) 10309 | -5/Extension | Entered Cetus 10332 | -5/Cetus | Spotted Cetus Guard 10333 | -5/Cetus | Spotted Cetus Guard 10337 | -5/Cetus | Spotted Cetus Guard 10341 | -5/Cetus | Spotted Cetus Guard 10341 | -5/Cetus | Destroyed Cetus Guard 10345 | -5/Cetus | Destroyed Cetus Guard 10351 | -5/Cetus | Destroyed Cetus Guard 10368 | -5/Cetus | Destroyed Cetus Guard 10381 | -5/Cetus | Lost 3 parts (1n1u1w) 10436 | -5/Cetus | System corruption reached 10% 10642 | -5/Cetus | Build established: Scavenger-Tank 10718 | -5/Cetus | Crushed by falling debris 10762 | -5/Cetus | Hacking Suite fried by hacking feedback 11018 | -5/Cetus | Discovered new exit (range 16) 11050 | -5/Cetus | Spotted Cetus Guard 11050 | -5/Cetus | Spotted Cetus Guard 11050 | -5/Cetus | Destroyed Cetus Guard 11052 | -5/Cetus | Spotted Cetus Guard 11054 | -5/Cetus | Destroyed Cetus Guard 11054 | -5/Cetus | Destroyed Cetus Guard 11059 | -5/Cetus | Security sweep announced 11063 | -5/Cetus | Destroyed Cetus Guard 11093 | -5/Cetus | Discovered new exit (range 15) 11101 | -5/Cetus | Met Revision 17 11171 | -5/Cetus | Entered Factory 11171 | -4/Factory | Evolved 2 slots: Propulsion x2 11180 | -4/Factory | Identified exit to DSF 11180 | -4/Factory | Entered DSF 11221 | -4/DSF | Additional patrols routed to DSF 11341 | -4/DSF | Sterilization system engaged 11356 | -4/DSF | Destroyed 7 combat bots 11361 | -4/DSF | Ambient heat levels rising (+10) 11375 | -4/DSF | Discovered new exit (range 15) 11376 | -4/DSF | Ambient heat levels rising (+10) 11391 | -4/DSF | Ambient heat levels rising (+10) 11406 | -4/DSF | Ambient heat levels rising (+10) 11416 | -4/DSF | Entered Research 11416 | -3/Research | Evolved 2 slots: Power x1, Utility x1 11616 | -3/Research | Revision forces began assault on 0b10 11639 | -3/Research | Met up with Revision 17++ 11757 | -3/Research | Found Prototype Device 11758 | -3/Research | Identified Exp. Thermal Shield 11974 | -3/Research | Discovered new exit (range 18) 12116 | -3/Research | Research terminal network offline 12546 | -3/Research | Discovered new exit (range 16) 12749 | -3/Research | Spotted Striker 12762 | -3/Research | Destroyed Striker 12777 | -3/Research | Spotted Striker 12818 | -3/Research | Lost 6 allies 12844 | -3/Research | Spotted Executioner 12846 | -3/Research | Destroyed Executioner 12864 | -3/Research | Found Prototype Device 12867 | -3/Research | Identified Adv. Kinecellerator 12968 | -3/Research | Spotted Striker 12972 | -3/Research | Spotted Striker 12983 | -3/Research | Destroyed Striker 12987 | -3/Research | Destroyed Striker 13065 | -3/Research | Spotted Striker 13111 | -3/Research | Destroyed Striker 13143 | -3/Research | Lost 5 parts (1p3u1w) 13201 | -3/Research | Lost 4 parts (1p1n1u1w) 13314 | -3/Research | Entered Armory 13400 | -3/Armory | Lost 6 parts (1p2n3u) 13657 | -3/Armory | Energy Cycler disabled 14171 | -3/Armory | Fabricated Adv. Point Defense System (x2) 14314 | -3/Armory | First assault squad dispatched 14397 | -3/Armory | Core integrity fell below 50% 14443 | -3/Armory | Lost 5 parts (2n2u1w) 14692 | -3/Armory | Spotted Armor Guard 14696 | -3/Armory | Spotted Armor Guard 14705 | -3/Armory | Lost 18 parts (5n8u5w) 14711 | -3/Armory | Core integrity fell below 20% 14720 | -3/Armory | System corruption reached 10% 14734 | -3/Armory | Destroyed by G-73 Enforcer with Phase Gun Last Messages --------------- 14672_ Adv. Point Defense System destroyed. 14673_ Sml. Battery melted. 14673_ P-80 Master destroyed. 14674_ Lyr. Light Armor Plating destroyed. 14674_ Arm. Medium Treads destroyed. 14675_ Acquired 8 matter. 14677_ Acquired Adv. Heat Sink. 14697_ System corrupted: Matter fused (-6). 14697_ Penetrated by Slug. 14697_ Slug penetrates Wall. 14705_ Quantum Rifle destroyed. 14707_ Quantum Reactor destroyed. 14714_ P-80 Master resets P-80 Master, system corruption cleaned. 14719_ Adv. Targeting Computer destroyed. 14727_ System corrupted: Matter fused (-7). 14728_ P-80 Master resets L-61 Swordsman, system corruption cleaned. 14729_ W-44 Eye sends out distress signal. 14733_ Centrium Leg destroyed. Map ----- +----------------------------------------------------+ | ?????????????????????????????????????? | | ?????????????????????????????????????? | | ?????????????????????????????????????? | | ?????????????????????????????????????? | | ?????????????????????????????????????? | | ?????????????????????????????????????? | | ?????????????????????????????????????? | | ?????????????????????????????????????? | | ?????????????????????????????????????? | | ???????l?????????????????????????????? | | ?????????????????????????????????????? | | ?????????????????????????????????????? | | ?????????????????????????????????????? | | ?????????????????????????????????????? | | ?????????????????????????????????????? | | ???????????????""????????????????????? | | ??????????????? ????????????????????? | | ?????##########/#####?????eee????????? | | ?????# #?????????# ?????? | | ?????# #????????? ?????? | | ?????? e #????????? ?????? | | ???????? w #????????? ?????? | | ?????????? e ??????????? ?????? | | ???????????? e ????????????? #?????? | | ???????????###e########??????# #?????? | | ???????????# @l ## ??????# #?????? | | ???????????# ## ?????# #?????? | | ???????????# ## ]]]?????# ####### | | ########???# ## ]]] ????# # | | # ???# ## ?#### # | | # ??# ## [[[ # / """ | | # ??# p## [[[ # # """ | | # ?# +gg H + / """ | | # ?# g# # # """ | | ??? # gp ########## # """ | | ??????" # g # """ | | ??????" + g g w # | | ??????" # Y # """ | | ??????" # Y # """ | | ??????" ?#### ########### # """ | | ??????" ????# #?????????# # """ | | ????? ?????# #?????????# # """ | | ???? ?????# #?????????# # """ | | ??? ??????# #?????????# #! | | ??######??????# #?????????# ####### | | ??????????????# #?????????T #?????? | | ??????????????? #?????????# #?????? | | ??????????????? #?????????# #?????? | | ??????????????? ??????????? ?????? | | ??????????????? ??????????? ??????? | +----------------------------------------------------+ Best States ------------- Heat Dissipation 115 Energy Generation 45 Energy Capacity 650 Matter Stores 300 Matter Capacity 300 Sight Range 16 Robot Scan Range 20 Terrain Scan Range 24 Terrain Scan Density 10 ECM Strength 1 Jamming Range 12 Armor Coverage 900 Resistance: TH 30 Core Shielding 20 Propulsion Shielding 33 Utility Shielding 66 Point Defense Rating 400 Evasion (%) 55 Targeting Accuracy 8 Launcher Accuracy 30 Target Analysis 5 Core Analysis 6 Recoil Reduction 10 Kinecelleration 50 Salvage Targeting 1 Offensive Hacking 10 Defensive Hacking 12 Authchip Count 1 Item Schematics ----------------- Imp. Weapon Shielding | -8/Storage | Hacked Imp. Light Armor Plating | -8/Recycling | Hacked Imp. Trap Scanner | -8/Recycling | Hacked Robot Schematics ------------------ H-55 Commando | -8/Storage | Hacked K-01 Serf | -8/Storage | Hacked A-02 Transporter | -8/Storage | Hacked H-66 Slayer | -5/Extension | Hacked Fabricated ------------ A-02 Transporter | x1 | -5/Factory | Preloaded Adv. Point Defense System | x2 | -3/Armory | Preloaded Repaired ---------- Exp. Sensor Array | 10% | -8/Materials Alien Tech Used ----------------- None Achievements -------------- My Command Is Your Wish Revolutionary Research Challenges ------------ None Game ------ Seed SubdwellerShadingCleaver Manual? 0 Play Time 02:38:23 Cumulative 81.4 hours Start 2025.07.30 @ 17:13:21 End 2025.07.30 @ 20:32:36 Sessions 1 Manual Loads 0 Difficulty Rogue Special Mode None Game No. 160 Rogue 160 Adventurer 0 Explorer 0 Win Type - Total 1 Types 1/0/0/0/0/0/0/0/0/0 Lore% 57 Gallery% 54 Achievement% 41 Wizard Run 0 Options --------- Layout 1 ASCII 0 Keyboard 0 Movement Mouse Keybinds 0 Fullscreen 1 Font 24/Smallcaps Map View 50x40 Zoom Use 0% Tactical HUD 1 Map Filters NONE Filters NONE Steam 1 RUN: df90c13e-16e3-4331-a1ff-69617e9027e9